Workbook

Sheet Kalkulator
B8: TYP BUDYNKU | C8: powyżej 140 kWh/m2/rok
B9: POZIOM DOTACJI | C9: Najwyższy | E9: =IF(AND(OR($C$8='Dane wejściowe'!$A$2,Kalkulator!$C$8='Dane wejściowe'!$A$3),$C$9='Dane wejściowe'!$B$2),"<- Podwyższony","") -> 
B11: AUDYT + ŚWIADECTWO CHARAKTERYSTYKI | C11: TAK
B13: PC/PIEC | C13: TAK
B14: =IF($C$13='Dane wejściowe'!$D$2,'Dane wejściowe'!$E$1,"") -> Źródło grzewcze | C14: Piec na pellet
B16: TERMOMODERNIZACJA | H16: Ilość lat kredytu: | I16: Wpłata własna:
B17: NIE | E17: =IF(AND($C$8='Dane wejściowe'!$A$4,$B$17<>'Dane wejściowe'!$F$2),"<- TAK","") -> <- TAK | H17: 5 | I17: =I29 -> 
B19: =IF($B$17='Dane wejściowe'!$F$2,'Dane wejściowe'!$G$1,"") -> 
B20: NIE | H20: MAX DOTACJA CZYSTE POWIETRZE | I20: =Matryca!N13 -> 41000
H21: WYKORZYSTNA DOTACJA CZYSTE POWIETRZE | I21: =IF($C$9='Dane wejściowe'!$B$3,MIN($I$20,($I$25-I31)*0.7),_xlfn.IFS(Matryca!N3="Nie dotyczy",Matryca!N13,Matryca!N3<($I$25-I31),Matryca!N3,Matryca!N3>=($I$25-I31),I25-I31)) -> 41000
B22: =IF($B$17='Dane wejściowe'!$F$2,'Dane wejściowe'!$I$1,"") -> 
B23: NIE | H23: AUDYT + ŚWIADECTWO CHARAKTERYSTYKI | I23: =IF($I$27=0,"",IF($C$11="NIE",0,1968)) -> 
B24: =IF($B$17='Dane wejściowe'!$F$3,"",IF($B$23='Dane wejściowe'!$I$2,'Dane wejściowe'!$J$1,"")) ->  | C24: Strop
B25: =IF($B$17='Dane wejściowe'!$F$3,"",IF($B$23='Dane wejściowe'!$I$2,'Dane wejściowe'!$K$1,"")) ->  | C25: Piana PUR | H25: CENA NETTO | I25: =Baza!F4 -> 41000
B26: =IF($B$17='Dane wejściowe'!$F$3,"",IF($B$23='Dane wejściowe'!$I$2,'Dane wejściowe'!$L$1,"")) ->  | C26: 100 | H26: VAT | I26: =Baza!F6 -> 3280
H27: CENA BRUTTO | I27: =IF(AND(Kalkulator!$C$8='Dane wejściowe'!$A$4,Kalkulator!$B$17='Dane wejściowe'!$F$3),0,Baza!F8) -> 0
B28: =IF($B$17='Dane wejściowe'!$F$2,'Dane wejściowe'!$N$1,"") -> 
B29: NIE | H29: Wpłata własna klienta | I29: =Baza!F28 -> 
B30: =IF($B$17='Dane wejściowe'!$F$3,"",IF($B$29='Dane wejściowe'!$N$2,'Dane wejściowe'!$O$1,"")) ->  | C30: 100
H31: MARŻA DODATKOWA | I31: 0
B32: =IF($B$17='Dane wejściowe'!$F$2,'Dane wejściowe'!$Q$1,"") -> 
B33: NIE
B34: =IF($B$17='Dane wejściowe'!$F$3,"",IF($B$33='Dane wejściowe'!$Q$2,'Dane wejściowe'!$R$1,"")) ->  | C34: 1
B35: =IF($B$17='Dane wejściowe'!$F$3,"",IF($B$33='Dane wejściowe'!$Q$2,"SUMA POWIERZCHNI DRZWI","")) ->  | C35: =IF($C$34=1,PRODUCT($C$37:$D$37),IF($C$34=2,SUM(PRODUCT($C$37:$D$37),PRODUCT($C$38:$D$38)),IF($C$34=3,SUM(PRODUCT($C$37:$D$37),PRODUCT($C$38:$D$38),PRODUCT($C$39:$D$39)),""))) -> 0
C36: =IF($B$33='Dane wejściowe'!$Q$2,'Dane wejściowe'!$T$2,"") ->  | D36: =IF($B$33='Dane wejściowe'!$Q$2,'Dane wejściowe'!$T$3,"") -> 
B37: =IF($B$17='Dane wejściowe'!$F$3,"",IF(AND($B$33='Dane wejściowe'!$Q$2,$C$34>='Dane wejściowe'!$R$2),'Dane wejściowe'!$S$2,"")) -> 
B38: =IF($B$17='Dane wejściowe'!$F$3,"",IF(AND($B$33='Dane wejściowe'!$Q$2,$C$34>='Dane wejściowe'!$R$3),'Dane wejściowe'!$S$3,"")) -> 
B39: =IF($B$17='Dane wejściowe'!$F$3,"",IF(AND($B$33='Dane wejściowe'!$Q$2,$C$34>='Dane wejściowe'!$R$4),'Dane wejściowe'!$S$4,"")) -> 
B41: =IF($B$17='Dane wejściowe'!$F$2,'Dane wejściowe'!$V$1,"") -> 
B42: NIE
B43: =IF($B$17='Dane wejściowe'!$F$3,"",IF($B$42='Dane wejściowe'!$V$2,'Dane wejściowe'!$W$1,"")) ->  | C43: 1
B44: =IF($B$17='Dane wejściowe'!$F$3,"",IF($B$42='Dane wejściowe'!$V$2,"SUMA POWIERZCHNI OKIEN","")) ->  | C44: =IF($C$43=1,PRODUCT($C$46:$D$46),IF($C$43=2,SUM(PRODUCT($C$46:$D$46),PRODUCT($C$47:$D$47)),IF($C$43=3,SUM(PRODUCT($C$46:$D$46),PRODUCT($C$47:$D$47),PRODUCT($C$48:$D$48)),IF($C$43=4,SUM(PRODUCT($C$46:$D$46),PRODUCT($C$47:$D$47),PRODUCT($C$48:$D$48),PRODUCT($C$49:$D$49)),IF($C$43=5,SUM(PRODUCT($C$46:$D$46),PRODUCT($C$47:$D$47),PRODUCT($C$48:$D$48),PRODUCT($C$49:$D$49),PRODUCT($C$50:$D$50)),IF($C$43=6,SUM(PRODUCT($C$46:$D$46),PRODUCT($C$47:$D$47),PRODUCT($C$48:$D$48),PRODUCT($C$49:$D$49),PRODUCT($C$50:$D$50),PRODUCT($C$51:$D$51)),IF($C$43=7,SUM(PRODUCT($C$46:$D$46),PRODUCT($C$47:$D$47),PRODUCT($C$48:$D$48),PRODUCT($C$49:$D$49),PRODUCT($C$50:$D$50),PRODUCT($C$51:$D$51),PRODUCT($C$52:$D$52)),IF($C$43=8,SUM(PRODUCT($C$46:$D$46),PRODUCT($C$47:$D$47),PRODUCT($C$48:$D$48),PRODUCT($C$49:$D$49),PRODUCT($C$50:$D$50),PRODUCT($C$51:$D$51),PRODUCT($C$52:$D$52),PRODUCT($C$53:$D$53)),IF($C$43=9,SUM(PRODUCT($C$46:$D$46),PRODUCT($C$47:$D$47),PRODUCT($C$48:$D$48),PRODUCT($C$49:$D$49),PRODUCT($C$50:$D$50),PRODUCT($C$51:$D$51),PRODUCT($C$52:$D$52),PRODUCT($C$53:$D$53),PRODUCT($C$54:$D$54)),IF($C$43=10,SUM(PRODUCT($C$46:$D$46),PRODUCT($C$47:$D$47),PRODUCT($C$48:$D$48),PRODUCT($C$49:$D$49),PRODUCT($C$50:$D$50),PRODUCT($C$51:$D$51),PRODUCT($C$52:$D$52),PRODUCT($C$53:$D$53),PRODUCT($C$54:$D$54),PRODUCT($C$55:$D$55)),"")))))))))) -> 0
C45: =IF($B$42='Dane wejściowe'!$V$2,'Dane wejściowe'!$Y$2,"") ->  | D45: =IF($B$42='Dane wejściowe'!$V$2,'Dane wejściowe'!$Y$3,"") -> 
B46: =IF($B$17='Dane wejściowe'!$F$3,"",IF(AND($B$42='Dane wejściowe'!$V$2,$C$43>='Dane wejściowe'!$W$2),'Dane wejściowe'!$X$2,"")) -> 
B47: =IF($B$17='Dane wejściowe'!$F$3,"",IF(AND($B$42='Dane wejściowe'!$V$2,$C$43>='Dane wejściowe'!$W$3),'Dane wejściowe'!$X$3,"")) ->  | C47: 0 | D47: 0
B48: =IF($B$17='Dane wejściowe'!$F$3,"",IF(AND($B$42='Dane wejściowe'!$V$2,$C$43>='Dane wejściowe'!$W$4),'Dane wejściowe'!$X$4,"")) ->  | C48: 0 | D48: 0
B49: =IF($B$17='Dane wejściowe'!$F$3,"",IF(AND($B$42='Dane wejściowe'!$V$2,$C$43>='Dane wejściowe'!$W$5),'Dane wejściowe'!$X$5,"")) ->  | C49: 0 | D49: 0
B50: =IF($B$17='Dane wejściowe'!$F$3,"",IF(AND($B$42='Dane wejściowe'!$V$2,$C$43>='Dane wejściowe'!$W$6),'Dane wejściowe'!$X$6,"")) ->  | C50: 0 | D50: 0
B51: =IF($B$17='Dane wejściowe'!$F$3,"",IF(AND($B$42='Dane wejściowe'!$V$2,$C$43>='Dane wejściowe'!$W$7),'Dane wejściowe'!$X$7,"")) ->  | C51: 0 | D51: 0
B52: =IF($B$17='Dane wejściowe'!$F$3,"",IF(AND($B$42='Dane wejściowe'!$V$2,$C$43>='Dane wejściowe'!$W$8),'Dane wejściowe'!$X$8,"")) ->  | C52: 0 | D52: 0
B53: =IF($B$17='Dane wejściowe'!$F$3,"",IF(AND($B$42='Dane wejściowe'!$V$2,$C$43>='Dane wejściowe'!$W$9),'Dane wejściowe'!$X$9,"")) ->  | C53: 0 | D53: 0
B54: =IF($B$17='Dane wejściowe'!$F$3,"",IF(AND($B$42='Dane wejściowe'!$V$2,$C$43>='Dane wejściowe'!$W$10),'Dane wejściowe'!$X$10,"")) ->  | C54: 0 | D54: 0
B55: =IF($B$17='Dane wejściowe'!$F$3,"",IF(AND($B$42='Dane wejściowe'!$V$2,$C$43>='Dane wejściowe'!$W$11),'Dane wejściowe'!$X$11,"")) ->  | C55: 0 | D55: 0

Sheet Raty kredytowe
C9: Inbank - kredyt do 10 lat | F9: Santander - kredyt do 10 lat
C10: Ilość lat | D10: =Kredyt!J2 -> 5 | F10: Ilość lat | G10: =Kredyt!J3 -> 5
C11: Cena instalacji brutto | D11: =Kredyt!E2 ->  | F11: Cena instalacji brutto | G11: =Kredyt!E3 -> 
C12: Wkład własny | D12: =Kredyt!F2 -> 0 | F12: Wkład własny | G12: =Kredyt!F3 -> 0
C13: Kwota kredytu | D13: =Kredyt!G2 ->  | F13: Kwota kredytu | G13: =Kredyt!G3 -> 
C14: Maksymalna kwota kredytu | D14: 100000 | F14: Maksymalna kwota kredytu | G14: 80000
C15: RATA MIESIĘCZNA | D15: =Kredyt!M2 -> - | F15: RATA MIESIĘCZNA | G15: =Kredyt!M3 -> -

Sheet Składowe
H10: Powierzchnia | J10: Koszt brutto | L10: Koszt netto | N10: Dofinansowanie | P10: VAT
A12: =Kalkulator!C14 -> Piec na pellet | H12: - | J12: =Baza!$I$5-J13 -> 22140 | L12: =Baza!$I$8-L13 -> 20500 | N12: =Baza!N19-N13 -> 20500 | P12: =J12-L12 -> 1640
A13: Modernizacja CO i CWU | H13: - | J13: =L13*1.08 -> 22140 | L13: 20500 | N13: =Baza!Q18 -> 20500 | P13: =J13-L13 -> 1640
A14: Rekuperacja | H14: - | J14: =Baza!$J$5 -> 0 | L14: =Baza!$J$8 -> 0 | N14: =Baza!N20 -> 0 | P14: 0
A15: AUDYT ENERGETYCZNY | J15: =Kalkulator!$I$23-492 ->  | L15: =J15/1.23 -> 
A16: ŚWIADECTWO CHARAKTERYSTYKI ENERGETYCZNEJ | H16: - | J16: =Kalkulator!$I$23-1476 ->  | L16: =J16/1.23 ->  | N16: =Baza!N25 -> 0 | P16: =J16-L16 -> 
A17: Suma | H17: - | J17: =IF(Baza!$T$1=Baza!$A$12,SUM(Składowe!J12:K14)+Kalkulator!$I$23,SUM(Składowe!J12:K14)) ->  | L17: =IF(Baza!$T$1=Baza!$A$12,SUM(Składowe!L12:M14)+(Kalkulator!$I$23/1.23),SUM(Składowe!L12:M14)) ->  | N17: =IF(Baza!$T$4=Baza!$A$12,SUM(Składowe!N12:O14),SUM(Składowe!N12:O14)) -> 41000 | P17: =IF(Baza!$T$4=Baza!$A$12,SUM(Składowe!P12:Q14)+(J16-L16),SUM(Składowe!P12:Q14)) -> 
A18: Wysokość wpłaty własnej | J18: =(J17-N17) -> 
A20: Dach/stropodach/strop pod nieogrzewanym poddaszem | H20: =Kalkulator!C26 -> 100 | J20: =Baza!$K$5 -> 0 | L20: =Baza!$K$8 -> 0 | N20: =Baza!N21 -> 0 | P20: 0
A21: Ściany zewnętrzne/przegrody pionowe | H21: =Kalkulator!C30 -> 100 | J21: =Baza!$L$5 -> 0 | L21: =Baza!$L$8 -> 0 | N21: =Baza!N22 -> 0 | P21: 0
A22: Stolarka okienna | H22: =Kalkulator!C44 -> 0 | J22: =Baza!$N$5 -> 0 | L22: =Baza!$N$8 -> 0 | N22: =Baza!N23 -> 0 | P22: 0
A23: Stolarka drzwiowa – drzwi zewnętrzne | H23: =Kalkulator!C35 -> 0 | J23: =Baza!$M$5 -> 0 | L23: =Baza!$M$8 -> 0 | N23: =Baza!N24 -> 0 | P23: 0
A24: AUDYT ENERGETYCZNY | J24: =IF(AND(Kalkulator!$C$11="TAK",Kalkulator!$I$23=""),1476,Kalkulator!$I$23-492) -> 1476 | L24: =$J$24/1.23 -> 1200
A25: ŚWIADECTWO CHARAKTERYSTYKI ENERGETYCZNEJ | H25: - | J25: =IF(AND(Kalkulator!$C$11="TAK",Kalkulator!$I$23=""),492,Kalkulator!$I$23-1476) -> 492 | L25: =$J$25/1.23 -> 400 | N25: =Baza!N25 -> 0 | P25: =J25-L25 -> 92
A26: Suma | H26: - | J26: =SUM(J20:K23,J24:K25) -> 1968 | L26: =SUM(L20:M23,L24:M25) -> 1600 | N26: =SUM(N20:O23) -> 0 | P26: =SUM(P20:Q23)+(J25-L25) -> 92
A27: Wysokość wpłaty własnej | J27: =(J26-N26) -> 1968
A29: Kwota brutto | E29: =Kalkulator!I27 -> 0
A30: Kwota netto | E30: =Kalkulator!I25 -> 41000
A31: Dofinansowanie | E31: =Kalkulator!I21 -> 41000
A32: Wpłata własna klienta | E32: =Kalkulator!I29 -> 

Sheet Kalkulator cen MAX (hidden)
A2: Poziom dofinansowania | B2: Najwyższy
A4: Źródło Ciepła
B5: ilość | C5: Wartość umowy netto | D5: Wartość umowy brutto | E5: Cena netto | F5: Cena brutto | H5: 3 | I5: Poziom dofinansowania (pompa/kocioł)
A6: Pompa Ciepła | C6: =B6*E6 -> 0 | D6: =B6*F6 -> 0 | E6: =IF($B$2="Najwyższy",'Matryca termo'!E31,IF($B$2="Podwyższony",'Matryca termo'!G31)) -> 35200 | F6: =IF($B$2="Najwyższy",'Matryca termo'!F31,IF($B$2="Podwyższony",'Matryca termo'!H31)) -> 38016 | I6: Maksymalna kwota dotacji | J6: Kwota dotacji klienta
A7: Kocioł zgazowujący | C7: 0 | D7: 0 | E7: =IF($B$2="Najwyższy",'Matryca termo'!E32,IF($B$2="Podwyższony",'Matryca termo'!G32)) -> 20500 | F7: =IF($B$2="Najwyższy",'Matryca termo'!F32,IF($B$2="Podwyższony",'Matryca termo'!H32)) -> 22140 | H7: Pompa ciepła | I7: 55700 | J7: =IF(H5=1,'Matryca termo'!K21,IF(H5=2,'Matryca termo'!K22,IF(H5=3,'Matryca termo'!K23))) -> 55700
A8: Kocioł na pellet | C8: 0 | D8: 0 | E8: =IF($B$2="Najwyższy",'Matryca termo'!E33,IF($B$2="Podwyższony",'Matryca termo'!G33)) -> 20500 | F8: =IF($B$2="Najwyższy",'Matryca termo'!F33,IF($B$2="Podwyższony",'Matryca termo'!H33)) -> 22140 | H8: Kocioł | I8: 41000 | J8: =IF(H5=1,'Matryca termo'!G21,IF(H5=2,'Matryca termo'!G22,IF(H5=3,'Matryca termo'!G23))) -> 41000
A9: CO/CWU | C9: 0 | D9: 0 | E9: =IF($B$2="Najwyższy",'Matryca termo'!E34,IF($B$2="Podwyższony",'Matryca termo'!G34)) -> 20500 | F9: =IF($B$2="Najwyższy",'Matryca termo'!F34,IF($B$2="Podwyższony",'Matryca termo'!H34)) -> 22140
A10: Audyt energetyczny i świadectwo | C10: 0 | D10: 0 | E10: =IF($B$2="Najwyższy",'Matryca termo'!E47,IF($B$2="Podwyższony",'Matryca termo'!G47)) -> 1600 | F10: =IF($B$2="Najwyższy",'Matryca termo'!F47,IF($B$2="Podwyższony",'Matryca termo'!H47)) -> 1968 | H10: 9 | I10: Przedział klienta (dofinansowanie + efektywność)
A11: Rekuperacja | C11: 0 | D11: 0 | E11: =IF($B$2="Najwyższy",'Matryca termo'!E44,IF($B$2="Podwyższony",'Matryca termo'!G44)) -> 2000 | F11: =IF($B$2="Najwyższy",'Matryca termo'!F44,IF($B$2="Podwyższony",'Matryca termo'!H44)) -> 2160 | I11: Maksymalna kwota dotacji | J11: Kwota dotacji klienta
H12: Pompa + Termo | I12: 140300 | J12: =IF(H10=1,'Matryca termo'!J1,IF(H10=2,'Matryca termo'!J2,IF(H10=3,'Matryca termo'!J3,IF(H10=4,'Matryca termo'!J4,IF(H10=5,'Matryca termo'!J5,IF(H10=6,'Matryca termo'!J6,IF(H10=7,'Matryca termo'!J7,IF(H10=8,'Matryca termo'!J8,IF(H10=9,'Matryca termo'!J9))))))))) -> 141900
A13: Wartość umowy | C13: =SUM(C6:C11) -> 0 | D13: =SUM(D6:D11) -> 0 | H13: Kocioł + Termo | I13: 125600 | J13: =IF(H10=1,'Matryca termo'!F1,IF(H10=2,'Matryca termo'!F2,IF(H10=3,'Matryca termo'!F3,IF(H10=4,'Matryca termo'!F4,IF(H10=5,'Matryca termo'!F5,IF(H10=6,'Matryca termo'!F6,IF(H10=7,'Matryca termo'!F7,IF(H10=8,'Matryca termo'!F8,IF(H10=9,'Matryca termo'!F9))))))))) -> 125600
H14: Termo | I14: 84600 | J14: =IF(H10=1,'Matryca termo'!B1,IF(H10=2,'Matryca termo'!B2,IF(H10=3,'Matryca termo'!B3,IF(H10=4,'Matryca termo'!B4,IF(H10=5,'Matryca termo'!B5,IF(H10=6,'Matryca termo'!B6,IF(H10=7,'Matryca termo'!B7,IF(H10=8,'Matryca termo'!B8,IF(H10=9,'Matryca termo'!B9))))))))) -> 84600
A15: Termomodernizacja
B16: ilość | C16: Wartość umowy netto | D16: Wartość umowy brutto | E16: Cena netto | F16: Cena brutto | H16: Przedział klienta (dofinansowanie + efektywność) | J16: Poziom dofinansowania (pompa/kocioł)
A17: Styropian - system (bialy klej) + Grunt szczepny (ściany) | C17: =B17*E17 -> 0 | D17: =B17*F17 -> 0 | E17: =IF($B$2="Najwyższy",'Matryca termo'!E35,IF($B$2="Podwyższony",'Matryca termo'!G35)) -> 250 | F17: =IF($B$2="Najwyższy",'Matryca termo'!F35,IF($B$2="Podwyższony",'Matryca termo'!H35)) -> 270 | H17: 1. | I17: Podstawowy(<80) | J17: 1. Podstawowy (40%)
A18: Piana PUR (20cm) | C18: 0 | D18: 0 | E18: =IF($B$2="Najwyższy",'Matryca termo'!E36,IF($B$2="Podwyższony",'Matryca termo'!G36)) -> 200 | F18: =IF($B$2="Najwyższy",'Matryca termo'!F36,IF($B$2="Podwyższony",'Matryca termo'!H36)) -> 216 | H18: 2. | I18: Podstawowy(80-140) | J18: 2. Podwyższony (70%)
A19: Piana PUR (25cm)-strop | C19: 0 | D19: 0 | E19: =IF($B$2="Najwyższy",'Matryca termo'!E37,IF($B$2="Podwyższony",'Matryca termo'!G37)) -> 200 | F19: =IF($B$2="Najwyższy",'Matryca termo'!F37,IF($B$2="Podwyższony",'Matryca termo'!H37)) -> 216 | H19: 3. | I19: Podstawowy(>140) | J19: 3. Najwyższy (100%)
A20: Welna -> na zakladke bez folii paroizolacyjnej (do 25cm) | C20: 0 | D20: 0 | E20: =IF($B$2="Najwyższy",'Matryca termo'!E38,IF($B$2="Podwyższony",'Matryca termo'!G38)) -> 200 | F20: =IF($B$2="Najwyższy",'Matryca termo'!F38,IF($B$2="Podwyższony",'Matryca termo'!H38)) -> 216 | H20: 4. | I20: Podwyższony(<80)
A21: Welna -> na zakladke z folia paroizolacyjna (do 25cm) | C21: 0 | D21: 0 | E21: =IF($B$2="Najwyższy",'Matryca termo'!E39,IF($B$2="Podwyższony",'Matryca termo'!G39)) -> 200 | F21: =IF($B$2="Najwyższy",'Matryca termo'!F39,IF($B$2="Podwyższony",'Matryca termo'!H39)) -> 216 | H21: 5. | I21: Podwyższony(80-140)
A22: Welna wdmuchiwana (do 20cm) | C22: 0 | D22: 0 | E22: =IF($B$2="Najwyższy",'Matryca termo'!E40,IF($B$2="Podwyższony",'Matryca termo'!G40)) -> 200 | F22: =IF($B$2="Najwyższy",'Matryca termo'!F40,IF($B$2="Podwyższony",'Matryca termo'!H40)) -> 216 | H22: 6. | I22: Podwyższony(>140)
A23: Welna wdmuchiwana (do 25cm) | C23: 0 | D23: 0 | E23: =IF($B$2="Najwyższy",'Matryca termo'!E41,IF($B$2="Podwyższony",'Matryca termo'!G41)) -> 200 | F23: =IF($B$2="Najwyższy",'Matryca termo'!F41,IF($B$2="Podwyższony",'Matryca termo'!H41)) -> 216 | H23: 7. | I23: Najwyższy(<80)
A24: Styropian -> na zakladke bez folii paroizolacyjnej (do 25cm) | C24: 0 | D24: 0 | E24: =IF($B$2="Najwyższy",'Matryca termo'!E42,IF($B$2="Podwyższony",'Matryca termo'!G42)) -> 200 | F24: =IF($B$2="Najwyższy",'Matryca termo'!F42,IF($B$2="Podwyższony",'Matryca termo'!H42)) -> 216 | H24: 8. | I24: Najwyższy(80-140)
A25: Styropian -> na zakladke z folia paroizolacyjna (do 25cm) | C25: 0 | D25: 0 | E25: =IF($B$2="Najwyższy",'Matryca termo'!E43,IF($B$2="Podwyższony",'Matryca termo'!G43)) -> 200 | F25: =IF($B$2="Najwyższy",'Matryca termo'!F43,IF($B$2="Podwyższony",'Matryca termo'!H43)) -> 216 | H25: 9. | I25: Najwyższy(>140)
A26: Drzwi (m2) | C26: 0 | D26: 0 | E26: =IF($B$2="Najwyższy",'Matryca termo'!E45,IF($B$2="Podwyższony",'Matryca termo'!G45)) -> 2500 | F26: =IF($B$2="Najwyższy",'Matryca termo'!F45,IF($B$2="Podwyższony",'Matryca termo'!H45)) -> 2700
A27: Stolarka okienna (m2) | C27: 0 | D27: 0 | E27: =IF($B$2="Najwyższy",'Matryca termo'!E46,IF($B$2="Podwyższony",'Matryca termo'!G46)) -> 1200 | F27: =IF($B$2="Najwyższy",'Matryca termo'!F46,IF($B$2="Podwyższony",'Matryca termo'!H46)) -> 1296
A28: Parapety | C28: 0 | D28: 0 | E28: =IF($B$2="Najwyższy",'Matryca termo'!E48,IF($B$2="Podwyższony",'Matryca termo'!G48)) -> 150 | F28: =IF($B$2="Najwyższy",'Matryca termo'!F48,IF($B$2="Podwyższony",'Matryca termo'!H48)) -> 162
A29: Skuwanie tynków | C29: 0 | D29: 0 | E29: =IF($B$2="Najwyższy",'Matryca termo'!E49,IF($B$2="Podwyższony",'Matryca termo'!G49)) -> 60 | F29: =IF($B$2="Najwyższy",'Matryca termo'!F49,IF($B$2="Podwyższony",'Matryca termo'!H49)) -> 64.8
A30: Opierzenie | C30: 0 | D30: 0 | E30: =IF($B$2="Najwyższy",'Matryca termo'!E50,IF($B$2="Podwyższony",'Matryca termo'!G50)) -> 175 | F30: =IF($B$2="Najwyższy",'Matryca termo'!F50,IF($B$2="Podwyższony",'Matryca termo'!H50)) -> 189
A31: Ocieplenie podłóg | C31: 0 | D31: 0 | E31: =IF($B$2="Najwyższy",'Matryca termo'!E51,IF($B$2="Podwyższony",'Matryca termo'!G51)) -> 150 | F31: =IF($B$2="Najwyższy",'Matryca termo'!F51,IF($B$2="Podwyższony",'Matryca termo'!H51)) -> 162
A32: Audyt energetyczny i świadectwo | C32: 0 | D32: 0 | E32: =IF($B$2="Najwyższy",'Matryca termo'!E47,IF($B$2="Podwyższony",'Matryca termo'!G47)) -> 1600 | F32: =IF($B$2="Najwyższy",'Matryca termo'!F47,IF($B$2="Podwyższony",'Matryca termo'!H47)) -> 1968
A34: Wartość umowy | C34: =SUM(C17:C32) -> 0 | D34: =SUM(D17:D32) -> 0
A72: Najwyższy
A73: Podwyższony
A100: 0
A101: 1
A102: 2
A103: 3
A104: 4
A105: 5
A106: 6
A107: 7
A108: 8

Sheet Dane wejściowe (hidden)
A1: TYP BUDYNKU | B1: Poziom dotacji | C1: AUDYT + ŚWIADECTWO CHARAKTERYSTYKI | D1: PC/PIEC | E1: Źródło grzewcze | F1: TERMOMODERNIZACJA | G1: REKUPERACJA | I1: OCIEPLENIE DACH STROP | J1: Ocieplana przegroda | K1: Materiał | L1: Powierzchnia ocieplenia (m2) | N1: OCIEPLENIE ŚCIAN ZEWNĘTRZNYCH | O1: Powierzchnia ocieplana (m2) | Q1: DRZWI | R1: Ilość drzwi (szt.) | V1: OKNA | W1: Ilość okien (szt.)
A2: do 80 kWh/m2/rok | B2: Najwyższy | C2: TAK | D2: TAK | E2: Pompa Ciepła | F2: TAK | G2: TAK | I2: TAK | J2: Strop | K2: Piana PUR | N2: TAK | Q2: TAK | R2: 1 | S2: Drzwi 1 | T2: Wysokość | V2: TAK | W2: 1 | X2: Okno 1 | Y2: Wysokość
A3: 80 - 140 kWh/m2/rok | B3: Podwyższony | C3: NIE | D3: NIE | E3: Piec na pellet | F3: NIE | G3: NIE | I3: NIE | J3: Dach | K3: Wełna | N3: NIE | Q3: NIE | R3: 2 | S3: Drzwi 2 | T3: Szerokość | V3: NIE | W3: 2 | X3: Okno 2 | Y3: Szerokość
A4: powyżej 140 kWh/m2/rok | E4: Piec zagazowujący drewno | R4: 3 | S4: Drzwi 3 | W4: 3 | X4: Okno 3
W5: 4 | X5: Okno 4
W6: 5 | X6: Okno 5
W7: 6 | X7: Okno 6
W8: 7 | X8: Okno 7
W9: 8 | X9: Okno 8
W10: 9 | X10: Okno 9
W11: 10 | X11: Okno 10
D17: =Kalkulator!$C$13 -> TAK | E17: =IF($D$17=$D$2,_xlfn.UNIQUE($E$2:$E$4),"") -> Pompa Ciepła | I17: =Kalkulator!$B$23 -> NIE | J17: =IF($I$17=$I$2,_xlfn.UNIQUE($J$2:$J$3),"") ->  | K17: =IF($I$17=$I$2,_xlfn.UNIQUE($K$2:$K$3),"") ->  | Q17: =Kalkulator!$B$33 -> NIE | R17: =IF($Q$17=$Q$2,_xlfn.UNIQUE($R$2:$R$4),"") ->  | V17: =Kalkulator!$B$42 -> NIE | W17: =IF($V$17=$V$2,_xlfn.UNIQUE($W$2:$W$11),"") -> 
E18: Piec na pellet
E19: Piec zagazowujący drewno

Sheet Baza (hidden)
A1: Pompa Ciepła | B1: 55700 | E1: =F1*1.08 -> 0 | F1: =Kalkulator!I31 -> 0 | I1: =Kalkulator!C13 -> TAK | J1: =Kalkulator!B20 -> NIE | K1: =Kalkulator!B23 -> NIE | L1: =Kalkulator!B29 -> NIE | M1: =Kalkulator!B33 -> NIE | N1: =Kalkulator!B42 -> NIE | O1: =Kalkulator!B17 -> NIE | T1: =Kalkulator!B17 -> NIE | W1: =Kalkulator!C11 -> TAK
A2: Piec na pellet | B2: 41000 | F2: Cena netto | I2: =Kalkulator!C14 -> Piec na pellet | J2: REKUPERACJA | K2: =Kalkulator!C25 -> Piana PUR | L2: =Kalkulator!B28 ->  | M2: =Kalkulator!C34 -> 1 | N2: =Kalkulator!C43 -> 1 | O2: =A9 -> AUDYT | T2: Termo
A3: Piec zagazowujący drewno | B3: 41000 | J3: =IF(J1=A11,B4,0) -> 0 | K3: =Kalkulator!C26 -> 100 | L3: =Kalkulator!C30 -> 100 | M3: =Kalkulator!C35 -> 0 | N3: =Kalkulator!C44 -> 0 | O3: =IF(O1=Baza!A11,B9,0) -> 0 | T3: =IF(OR(J1=A11,K1=A11,L1=A11,M1=A11,N1=A11),A11,A12) -> NIE
A4: REKUPERACJA | B4: 2000 | F4: =SUM(I4:N4,F1) -> 41000 | I4: =IF(I1=A11,_xlfn.IFS(I2=A1,B1,I2=A2,B2,I2=A3,B3),0) -> 41000 | J4: =IF(O1=A11,J3*8,0) -> 0 | K4: =IF(AND(O1=A11,K1=A11),K3*B5,0) -> 0 | L4: =IF(AND(O1=A11,L1=A11),L3*B6,0) -> 0 | M4: =IF(AND(O1=A11,M1=A11),M3*B7,0) -> 0 | N4: =IF(AND(O1=A11,N1=A11),N3*B8,0) -> 0 | O4: =IF(SUM(I4:N4)>0,O3,0) -> 0 | T4: =IF(OR(K1=A11,L1=A11,M1=A11,N1=A11),A11,A12) -> NIE
A5: OCIEPLENIE DACH STROP | B5: 200 | F5: =IF(F4>0,F4,0) -> 41000 | I5: =IF(A12=Kalkulator!B17,(Baza!I4*1.08)+Baza!E1,Baza!I4*1.08) -> 44280 | J5: =J4*1.08 -> 0 | K5: 0 | L5: =IF(AND(T1=A11,L4>0),L4*1.08+E1,L4*1.08) -> 0 | M5: 0 | N5: 0
A6: OCIEPLENIE ŚCIAN ZEWNĘTRZNYCH | B6: 250 | F6: =IF(F4>0,(F5*0.08),0) -> 3280 | I6: =_xlfn.IFS(F10='Dane wejściowe'!B3,Baza!I4*0.7,Baza!F10='Dane wejściowe'!B2,Baza!I4) -> 41000
A7: DRZWI | B7: 2500
A8: OKNA | B8: 1200 | F8: =F4+F6 -> 44280 | I8: =IF(A12=Kalkulator!B17,Baza!I4+Baza!F1,Baza!I4) -> 41000 | J8: =J4 -> 0 | K8: 0 | L8: =IF(AND(T1=A11,L4>0),L4+F1,L4) -> 0 | M8: 0 | N8: 0 | O8: 0 | X8: 1
A9: AUDYT | B9: 1600 | I9: =I5-I8 -> 3280 | J9: =J5-J8 -> 0 | K9: 0 | L9: 0 | M9: 0 | N9: 0 | X9: 2
F10: =Kalkulator!C9 -> Najwyższy | X10: 3
A11: TAK | X11: 4
A12: NIE | X12: 5
X13: 6
X14: 7
X15: 8
N17: =Kalkulator!I20 -> 41000
N18: =Kalkulator!I21 -> 41000 | P18: Modernizacja CO i CWU | Q18: =IF(I1=A11,_xlfn.IFS(F10=Matryca!S2,Baza!P20,F10=Matryca!S1,Baza!P19),0) -> 20500
M19: Piec na pellet | N19: =IF(I1=A11,_xlfn.IFS(AND(I2=A1,F10=Matryca!S2),Matryca!K22,AND(I2=A1,F10=Matryca!S1),Matryca!K23,AND(I2=A2,F10=Matryca!S2),Matryca!G22,AND(I2=A2,F10=Matryca!S1),Matryca!G23,AND(I2=A3,F10=Matryca!S2),Matryca!G22,AND(I2=A3,F10=Matryca!S1),Matryca!G23)) -> 41000 | P19: 20500
M20: Rekuperacja | N20: =IF(J4>0,J4,0) -> 0 | P20: =P19*0.7 -> 14350
M21: Dach/stropodach/strop pod nieogrzewanym poddaszem | N21: =IF(K4>0,K4,0) -> 0
M22: Ściany zewnętrzne/przegrody pionowe | N22: =N18-SUM(N19:N21,N23:N25) -> 0
M23: Stolarka okienna | N23: =IF(N4>0,N4,0) -> 0
M24: Stolarka drzwiowa – drzwi zewnętrzne | N24: =IF(M4>0,M4,0) -> 0
M25: Audyt | N25: 0
F27: =IF((Kalkulator!I27-F1*1.08)-Kalkulator!I21>0,((Kalkulator!I27-F1*1.08)-Kalkulator!I21)+Kalkulator!I23,(Kalkulator!I31*1.08)+Kalkulator!I23) -> 
F28: =F27+Kalkulator!I31*1.08 -> 

Sheet Kredyt (hidden)
E1: Kwota instalacji | F1: Wkład włany | G1: Kwota kredytu | H1: RRSO | I1: RRSO/m-c | J1: Okres kredytowania | K1: M-c | L1: Rata | M1: Warunki
A2: 2 | D2: Inbank | E2: =Kalkulator!I29 ->  | G2: =E2-F2 ->  | H2: 0.1284 | I2: =H2/12 -> 0.0107 | J2: =Kalkulator!H17 -> 5 | K2: =J2*12 -> 60 | L2: =(G2/K2)+G2*0.006 ->  | M2: =IFERROR(IF(J2=VLOOKUP(J2,A2:A11,1,0),L2,0),"-") -> -
A3: 3 | D3: Santander | E3: =Kalkulator!I29 ->  | G3: =E3-F3 ->  | H3: 0.1284 | I3: =H3/12 -> 0.0107 | J3: =Kalkulator!H17 -> 5 | K3: =IFERROR(J3*12,120) -> 60 | L3: =(G3/K3)+G3*0.006 ->  | M3: =IFERROR(IF(J3=VLOOKUP(J3,A2:A7,1,0),L3,0),"-") -> -
A4: 4
A5: 5
A6: 6
A7: 83 miesiące
A8: 7
A9: 8
A10: 9
A11: 10

Sheet Matryca (hidden)
A1: Podstawowy(<80) | B1: Nie dotyczy | E1: Podstawowy(<80) | F1: Nie dotyczy | I1: Podstawowy(<80) | J1: Nie dotyczy | M1: =Kalkulator!C9 -> Najwyższy | N1: =Kalkulator!B14 -> Źródło grzewcze | O1: =Kalkulator!C14 -> Piec na pellet | P1: =Kalkulator!C13 -> TAK | R1: TAK | S1: Najwyższy | T1: Pompa Ciepła | W1: =Kalkulator!B17 -> NIE | X1: =IF(AND(Matryca!W1=Matryca!R2,Matryca!P1=Matryca!R2),Matryca!R2,Matryca!R1) -> TAK
A2: Podstawowy(80-140) | B2: Nie dotyczy | E2: Podstawowy(80-140) | F2: 37200 | I2: Podstawowy(80-140) | J2: Nie dotyczy | R2: NIE | S2: Podwyższony | T2: Piec na pellet
A3: Podstawowy(>140) | B3: Nie dotyczy | E3: Podstawowy(>140) | F3: 51200 | I3: Podstawowy(>140) | J3: Nie dotyczy | N3: =IF(X1=R1,IF(P1=R1,_xlfn.IFS(AND(M1=S1,O1=T1,W1=R1),N9,AND(M1=S2,O1=T1,W1=R1),N9,AND(M1=S1,O1=T2,W1=R1),N10,AND(M1=S2,O1=T2,W1=R1),N10,AND(M1=S1,O1=T3,W1=R1),N10,AND(M1=S2,O1=T3,W1=R1),N10, AND(M1=S1,O1=T1,W1=R2),K23,AND(M1=S2,O1=T1,W1=R2),K22,AND(M1=S1,O1=T2,W1=R2),G23,AND(M1=S2,O1=T2,W1=R2),G22,AND(M1=S1,O1=T3,W1=R2),G23,AND(M1=S2,O1=T3,W1=R2),G22 ),_xlfn.IFS(M1=S1,N11,M1=S2,N11)),0) -> 41000 | T3: Piec zagazowujący drewno
A4: Podwyższony(<80) | B4: Nie dotyczy | E4: Podwyższony(<80) | F4: Nie dotyczy | I4: Podwyższony(<80) | J4: Nie dotyczy
A5: Podwyższony(80-140) | B5: =33600 -> 33600 | E5: Podwyższony(80-140) | F5: =63900-1600 -> 62300 | I5: Podwyższony(80-140) | J5: =B5+K22 -> 72590
A6: Podwyższony(>140) | B6: 58100 | E6: Podwyższony(>140) | F6: =88400-1600 -> 86800 | I6: Podwyższony(>140) | J6: =B6+K22 -> 97090
A7: Najwyższy(<80) | B7: Nie dotyczy | E7: Najwyższy(<80) | F7: Nie dotyczy | I7: Najwyższy(<80) | J7: Nie dotyczy
A8: Najwyższy(80-140) | B8: Nie dotyczy | E8: Najwyższy(80-140) | F8: Nie dotyczy | I8: Najwyższy(80-140) | J8: Nie dotyczy
A9: Najwyższy(>140) | B9: =83000 -> 83000 | E9: Najwyższy(>140) | F9: =125600-1600 -> 124000 | I9: Najwyższy(>140) | J9: =B9+K23 -> 138700 | M9: Pompa + Termo | N9: =IF(M1=S2,_xlfn.IFS(M27=M18,J4,M27=M19,J5,M27=M20,J6),_xlfn.IFS(M27=M18,J7,M27=M19,J8,M27=M20,J9)) -> 138700
M10: Kocioł + Termo | N10: =IF(M1=S2,_xlfn.IFS(M27=M18,F4,M27=M19,F5,M27=M20,F6),_xlfn.IFS(M27=M18,F7,M27=M19,F8,M27=M20,F9)) -> 124000
M11: Termo | N11: =IF(M1=S2,_xlfn.IFS(M27=M18,B4,M27=M19,B5,M27=M20,B6),_xlfn.IFS(M27=M18,B7,M27=M19,B8,M27=M20,B9)) -> 83000
N13: =IF(X1=R1,IF(W1=R2,N3,IF(P1=R1,_xlfn.IFS(O1=T1,N9,O1=T2,N10,O1=T3,N10),N11)),0) -> 41000
A15: termo | E15: kocioł + termo | I15: pompa + termo
M18: do 80 kWh/m2/rok
M19: 80 - 140 kWh/m2/rok
E20: kocioł | F20: progi | G20: zł | I20: pompa | J20: progi | K20: zł | M20: powyżej 140 kWh/m2/rok
E21: 41000 | F21: 0.4 | G21: =E21*F21 -> 16400 | I21: 55700 | J21: 0.4 | K21: =I21*J21 -> 22280
F22: 0.7 | G22: =E21*F22 -> 28700 | J22: 0.7 | K22: =I21*J22 -> 38990
F23: 1 | G23: =41000 -> 41000 | J23: 1 | K23: =55700 -> 55700
M27: =Kalkulator!C8 -> powyżej 140 kWh/m2/rok
H34: WARUNKI(Matryca!N3="Nie dotyczy";Matryca!N13;Matryca!N3<I25;Matryca!N3;Matryca!N3>=I25;I25-I31)

Sheet Matryca termo (hidden)
A1: Podstawowy(<80) | B1: Nie dotyczy | E1: Podstawowy(<80) | F1: Nie dotyczy | I1: Podstawowy(<80) | J1: Nie dotyczy
A2: Podstawowy(80-140) | B2: 19840 | E2: Podstawowy(80-140) | F2: 37200 | I2: Podstawowy(80-140) | J2: =B2+K21+1600 -> 43720
A3: Podstawowy(>140) | B3: 33840 | E3: Podstawowy(>140) | F3: 51200 | I3: Podstawowy(>140) | J3: =B3+K21+1600 -> 57720
A4: Podwyższony(<80) | B4: Nie dotyczy | E4: Podwyższony(<80) | F4: Nie dotyczy | I4: Podwyższony(<80) | J4: Nie dotyczy
A5: Podwyższony(80-140) | B5: 34720 | E5: Podwyższony(80-140) | F5: 63900 | I5: Podwyższony(80-140) | J5: =B5+K22+1600 -> 75310
A6: Podwyższony(>140) | B6: 59220 | E6: Podwyższony(>140) | F6: 88400 | I6: Podwyższony(>140) | J6: =B6+K22+1600 -> 99810
A7: Najwyższy(<80) | B7: Nie dotyczy | E7: Najwyższy(<80) | F7: Nie dotyczy | I7: Najwyższy(<80) | J7: Nie dotyczy
A8: Najwyższy(80-140) | B8: Nie dotyczy | E8: Najwyższy(80-140) | F8: Nie dotyczy | I8: Najwyższy(80-140) | J8: Nie dotyczy
A9: Najwyższy(>140) | B9: 84600 | E9: Najwyższy(>140) | F9: 125600 | I9: Najwyższy(>140) | J9: =B9+K23+1600 -> 141900
A15: termo | E15: kocioł + termo | I15: pompa + termo
E20: kocioł | F20: progi | G20: zł | I20: pompa | J20: progi | K20: zł
E21: 41000 | F21: 0.4 | G21: =E21*F21 -> 16400 | I21: 55700 | J21: 0.4 | K21: =I21*J21 -> 22280
F22: 0.7 | G22: =E21*F22 -> 28700 | J22: 0.7 | K22: =I21*J22 -> 38990
F23: 1 | G23: 41000 | J23: 1 | K23: 55700
A30: Zakres | B30: Przyjęty koszt netto ER | C30: Przyjęty koszt netto Darmowy Remont | E30: Maksymalne ceny jednostkowe (poziom najwyższy) netto | F30: Maksymalne ceny jednostkowe (poziom najwyższy) brutto | G30: Maksymalne ceny jednostkowe (poziom podwyższony) netto | H30: Maksymalne ceny jednostkowe (poziom podwyższony) brutto
A31: PC | B31: 22500 | C31: 41000 | E31: 35200 | F31: 38016 | G31: 24640 | H31: 26611.2
A32: Kocioł zgazowujący | B32: 23500 | C32: 29400 | E32: 20500 | F32: 22140 | G32: 14350 | H32: 15498
A33: Kocioł na pellet | B33: 19500 | C33: 29400 | E33: 20500 | F33: 22140 | G33: 14350 | H33: 15498
A34: CO/CWU | B34: 5000 | C34: 5000 | E34: 20500 | F34: 22140 | G34: 14350 | H34: 15498
A35: Styropian - system (bialy klej) + Grunt szczepny (sciany) | B35: 165 | C35: 223 | E35: 250 | F35: 270 | G35: 175 | H35: 189
A36: Piana PUR (20cm) | B36: 72 | C36: 145 | E36: 200 | F36: 216 | G36: 140 | H36: 151.2
A37: Piana PUR (25cm)(strop) | B37: 85 | C37: 155 | E37: 200 | F37: 216 | G37: 140 | H37: 151.2
A38: Welna -> na zakladke bez folii paroizolacyjnej (do 25cm) | B38: 90 | C38: 145 | E38: 200 | F38: 216 | G38: 140 | H38: 151.2
A39: Welna -> na zakladke z folia paroizolacyjna (do 25cm) | B39: 95 | C39: 155 | E39: 200 | F39: 216 | G39: 140 | H39: 151.2
A40: Welna wdmuchiwana (do 20cm) | B40: 60 | C40: 133 | E40: 200 | F40: 216 | G40: 140 | H40: 151.2
A41: Welna wdmuchiwana (do 25cm) | B41: 65 | C41: 135 | E41: 200 | F41: 216 | G41: 140 | H41: 151.2
A42: Styropian -> na zakladke bez folii paroizolacyjnej (do 25cm) | B42: 100 | C42: 159 | E42: 200 | F42: 216 | G42: 140 | H42: 151.2
A43: Styropian -> na zakladke z folia paroizolacyjna (do 25cm) | B43: 105 | C43: 167 | E43: 200 | F43: 216 | G43: 140 | H43: 151.2
A44: Rekuperacja | B44: 1700 | C44: 1900 | D44: szt | E44: 2000 | F44: 2160 | G44: 1400 | H44: 1512
A45: Drzwi | B45: 2000 | C45: 2400 | D45: zł/m2 | E45: 2500 | F45: 2700 | G45: 1750 | H45: 1890
A46: Stolarka okienna | B46: 1120 | C46: 1120 | D46: zł/m2 | E46: 1200 | F46: 1296 | G46: 840 | H46: 907.2
A47: Audyt energetyczny i świadectwo | B47: 1600 | C47: 1600 | E47: 1600 | F47: 1968 | G47: 1120 | H47: 1377.6
A48: Parapety | B48: 150 | C48: 150 | D48: zł/m2 | E48: 150 | F48: 162 | G48: 105 | H48: 113.4
A49: Skuwanie tynków | B49: 60 | C49: 60 | D49: zł/m2 | E49: 60 | F49: 64.8 | G49: 42 | H49: 45.36
A50: Opierzenie | B50: 175 | C50: 175 | D50: zł/m2 | E50: 175 | F50: 189 | G50: 120 | H50: 129.6
A51: Ocieplenie podłóg | E51: 150 | F51: 162 | G51: 105 | H51: 113.4
A53: rekuperacja centralna | E53: 16700 | F53: do zakodowania i ukrycia póki co
